fUSD/lending_fUSD_20250811
["ID","MTS","AMOUNT","RATE_DAILY","PERIOD"]
[378492194,1754886666831,-400.0,0.00017547,2]
[378492195,1754886666840,-400.0,0.00017547,2]
[378492196,1754886666850,-400.0,0.00017547,2]
[378492197,1754886666859,-400.0,0.00017547,2]
[378492198,1754886666868,-2455.42,0.00017547,2]
[378492199,1754886666880,-963.99,0.00017547,2]
[378492200,1754886666892,-400.0,0.00017547,2]
[378492201,1754886666904,-400.0,0.00017547,2]
[378492202,1754886666913,-400.0,0.00017547,2]
[378492203,1754886666922,-1921.78,0.00017547,2]
[378492204,1754886666932,-400.0,0.00017547,2]
[378492205,1754886666943,-857.46,0.00017547,2]
[378492206,1754886666961,-400.0,0.00017547,2]
[378492207,1754886666971,-1592.26,0.00017547,2]
[378492208,1754886666980,-7913.38,0.00017547,2]
[378492209,1754886666990,-400.0,0.00017547,2]
[378492210,1754886666999,-879.48,0.00017547,2]
[378492211,1754886667009,-740.94,0.00017547,2]
[378492212,1754886667018,-402.32646436,0.00017547,2]
[378492213,1754886667028,-400.0,0.00017547,2]
[378492214,1754886667038,-400.0,0.00017547,2]
[378492215,1754886667047,-1614.05,0.00017547,2]
[378492216,1754886667056,-209.64302393,0.00017547,2]
[378492217,1754886667066,-403.59,0.00017547,2]
[378492218,1754886667075,-565.32,0.00017547,2]
[378492219,1754886667085,-385.85850267,0.00017547,2]
[378492220,1754886667094,-839.55,0.00017547,2]
[378492221,1754886667104,-504.78,0.00017547,2]
[378492222,1754886667113,-2321.56,0.00017547,2]
[378492223,1754886667122,-639.29,0.00017547,2]
[378492224,1754886667132,-1629.58,0.00017547,2]
[378492225,1754886667141,-939.98,0.00017547,2]
[378492226,1754886667151,-1323.73,0.00017547,2]
[378492227,1754886667160,-400.0,0.00017547,2]
[378492228,1754886667169,-1738.72,0.00017547,2]
[378492229,1754886667181,-194.11736201,0.00017547,2]
[378492230,1754886667190,-400.0,0.00017547,2]
[378492231,1754886667200,-400.0,0.00017547,2]
[378492232,1754886667209,-2334.26,0.00017547,2]
[378492233,1754886667219,-400.0,0.00017547,2]
[378492234,1754886667228,-400.0,0.00017547,2]
[378492235,1754886667238,-2203.02,0.00017547,2]
[378492236,1754886667249,-400.0,0.00017547,2]
[378492237,1754886667259,-866.1,0.00017547,2]
[378492238,1754886667268,-454.63,0.00017547,2]
[378492239,1754886667278,-400.0,0.00017547,2]
[378492240,1754886667287,-400.0,0.00017547,2]
[378492241,1754886667297,-590.93,0.00017547,2]
[378492242,1754886667307,-1370.62,0.00017547,2]
[378492243,1754886667317,-428.1,0.00017547,2]
[378492244,1754886667326,-400.0,0.00017547,2]
[378492245,1754886667336,-400.0,0.00017547,2]
[378492246,1754886667346,-403.04253222,0.00017547,2]
[378492247,1754886667356,-792.73,0.00017547,2]
[378492248,1754886667365,-400.0,0.00017547,2]
[378492249,1754886667374,-1841.0,0.00017547,2]
[378492250,1754886667384,-400.0,0.00017547,2]
[378492251,1754886667393,-822.77,0.00017547,2]
[378492252,1754886667403,-1944.13,0.00017547,2]
[378492253,1754886667412,-400.0,0.00017547,2]
[378492254,1754886667422,-621.88,0.00017547,2]
[378492255,1754886667433,-3548.7,0.00017547,2]
[378492256,1754886667442,-400.0,0.00017547,2]
[378492257,1754886667451,-808.04,0.00017547,2]
[378492258,1754886667461,-400.0,0.00017547,2]
[378492259,1754886667478,-477.57321269,0.00017547,2]
[378492260,1754886667488,-1925.87,0.00017547,2]
[378492261,1754886667498,-1150.74,0.00017547,2]
[378492262,1754886667507,-421.99,0.00017547,2]
[378492263,1754886667517,-1979.32,0.00017547,2]
[378492264,1754886667526,-400.0,0.00017547,2]
[378492265,1754886667536,-499.88,0.00017547,2]
[378492266,1754886667546,-436.14,0.00017547,2]
[378492267,1754886667556,-402.3898779,0.00017547,2]
[378492268,1754886667566,-450.76,0.00017547,2]
[378492269,1754886667576,-848.85,0.00017547,2]
[378492270,1754886667592,-400.0,0.00017547,2]
[378492271,1754886667602,-400.0,0.00017547,2]
[378492272,1754886667611,-400.0,0.00017547,2]
[378492273,1754886667621,-449.78,0.00017547,2]
[378492274,1754886667638,-4500.31,0.00017547,2]
[378492275,1754886667647,-400.0,0.00017547,2]
[378492276,1754886667656,-400.0,0.00017547,2]
[378492277,1754886667666,-1272.95,0.00017547,2]
[378492278,1754886667678,-2845.53,0.00017547,2]
[378492279,1754886667688,-400.0,0.00017547,2]
[378492280,1754886667697,-402.13861711,0.00017547,2]
[378492281,1754886667706,-2568.52,0.00017547,2]
[378492282,1754886667715,-400.0,0.00017547,2]
[378492283,1754886667725,-5336.15,0.00017547,2]
[378492284,1754886667735,-906.0,0.00017547,2]
[378492285,1754886667744,-1189.6,0.00017547,2]
[378492286,1754886667754,-817.46,0.00017547,2]
[378492287,1754886667763,-400.0,0.00017547,2]
[378492288,1754886667772,-400.0,0.00017547,2]
[378492289,1754886667781,-400.0,0.00017547,2]
[378492290,1754886667791,-474.44,0.00017551,2]
[378492291,1754886667800,-150.0,0.00017577,2]
[378492292,1754886667810,-1000.0,0.00017594,2]
[378492293,1754886667819,-150.0,0.000176,2]
[378492294,1754886667828,-1000.0,0.00017609,2]
[378492295,1754886667838,-150.0,0.00017614,2]
[378492296,1754886667847,-150.0,0.00017619,2]
[378492297,1754886667856,-150.0,0.00017622,2]
[378492298,1754886667866,-150.0,0.00017626,2]
[378492299,1754886667875,-150.0,0.0001763,2]
[378492300,1754886667884,-236.95100455,0.00017636,2]
[378492301,1754886667893,-150.0,0.00017659,2]
[378492302,1754886667903,-150.0,0.00017675,2]
[378492303,1754886667912,-150.0,0.0001768,2]
[378492304,1754886667921,-150.0,0.00017691,2]
[378492305,1754886667931,-150.0,0.00017698,2]
[378492306,1754886667942,-150.0,0.00017699,2]
[378492307,1754886667951,-150.0,0.00017705,2]
[378492308,1754886667960,-150.0,0.00017708,2]
[378492309,1754886667970,-109224.28788625,0.0001771,2]
[378492310,1754886667979,-1000.0,0.00017714,2]
[378492311,1754886667989,-1000.0,0.00017715,2]
[378492312,1754886667999,-828.55,0.00017717,2]
[378492313,1754886668008,-1186.71,0.00017717,2]
[378492314,1754886668018,-400.0,0.00017717,2]
[378492315,1754886668028,-1147.62,0.00017717,2]
[378492316,1754886668038,-1449.09,0.00017717,2]
[378492317,1754886668047,-400.0,0.00017717,2]
[378492318,1754886668056,-400.0,0.00017717,2]
[378492319,1754886668065,-403.39,0.00017717,2]
[378492320,1754886668075,-400.0,0.00017717,2]
[378492321,1754886668084,-1645.25,0.00017717,2]
[378492322,1754886668094,-479.53,0.00017717,2]
[378492323,1754886668104,-400.0,0.00017717,2]
[378492324,1754886668113,-400.0,0.00017717,2]
[378492325,1754886668123,-400.0,0.00017717,2]
[378492326,1754886668133,-400.0,0.00017717,2]
[378492327,1754886668143,-400.0,0.00017717,2]
[378492328,1754886668153,-400.0,0.00017717,2]
[378492329,1754886668162,-150.0,0.00017723,2]
[378492330,1754886668172,-238.93,0.00017737,2]
[378492331,1754886668182,-150.0,0.00017742,2]
[378492332,1754886668191,-150.0,0.00017758,2]
[378492333,1754886668200,-204.23976139,0.00017767,2]
[378492334,1754886668210,-204.25,0.00017769,2]
[378492335,1754886668219,-231.61663843,0.00017771,2]
[378492336,1754886668229,-600.0,0.00017778,2]
[378492337,1754886668239,-600.0,0.00017778,2]
[378492338,1754886668248,-215.94,0.00017778,2]
[378492339,1754886668257,-150.0,0.00017778,2]
[378492340,1754886668267,-1506.75,0.00017794,2]
[378492341,1754886668276,-2092.88,0.00017794,2]
[378492342,1754886668286,-1484.73,0.00017794,2]
[378492343,1754886668295,-1352.34,0.00017794,2]
[378492344,1754886668306,-7378.0,0.00017794,2]
[378492345,1754886668315,-1869.19,0.00017794,2]
[378492346,1754886668324,-2590.55,0.00017794,2]
[378492347,1754886668334,-4686.95,0.00017794,2]
[378492348,1754886668343,-3658.33,0.00017794,2]
[378492349,1754886668353,-150.0,0.00017796,2]
[378492350,1754886668363,-150.0,0.00017798,2]
[378492351,1754886668373,-150.0,0.00017803,2]
[378492352,1754886668383,-878.58004442,0.00017805,2]
[378492353,1754886668392,-150.0,0.00017811,2]
[378492354,1754886668402,-408.66,0.00017819,2]
[378492355,1754886668411,-1669.89,0.00017819,2]
[378492356,1754886668420,-747.03,0.00017819,2]
[378492357,1754886668431,-2364.88,0.00017819,2]
[378492358,1754886668440,-2423.22,0.00017819,2]
[378492359,1754886668449,-1881.34,0.00017819,2]
[378492360,1754886668459,-1965.12,0.00017819,2]
[378492361,1754886668468,-1429.66,0.00017819,2]
[378492362,1754886668477,-1438.72,0.00017819,2]
[378492363,1754886668486,-1146.62,0.00017819,2]
[378492364,1754886668497,-2833.62,0.00017819,2]
[378492365,1754886668506,-782.18,0.00017819,2]
[378492366,1754886668516,-400.0,0.0001782,2]
[378492367,1754886668525,-617.49,0.0001782,2]
[378492368,1754886668535,-400.0,0.0001782,2]
[378492369,1754886668545,-400.0,0.0001782,2]
[378492370,1754886668555,-1995.24,0.0001782,2]
[378492371,1754886668564,-400.0,0.0001782,2]
[378492372,1754886668574,-400.0,0.0001782,2]
[378492373,1754886668588,-1019.54,0.0001782,2]
[378492374,1754886668598,-1059.04,0.0001782,2]
[378492375,1754886668607,-865.35,0.0001782,2]
[378492376,1754886668618,-400.0,0.0001782,2]
[378492377,1754886668628,-2310.21,0.0001782,2]
[378492378,1754886668638,-400.0,0.0001782,2]
[378492379,1754886668648,-400.0,0.0001782,2]
[378492380,1754886668658,-1030.57,0.0001782,2]
[378492381,1754886668669,-898.11,0.0001782,2]
[378492382,1754886668680,-400.0,0.0001782,2]
[378492383,1754886668690,-474.3,0.0001782,2]
[378492384,1754886668699,-400.0,0.0001782,2]
[378492385,1754886668709,-445.35,0.0001782,2]
[378492386,1754886668718,-754.81,0.0001782,2]
[378492387,1754886668727,-400.0,0.0001782,2]
[378492388,1754886668737,-780.7,0.0001782,2]
[378492389,1754886668746,-600.96,0.0001782,2]
[378492390,1754886668756,-822.971514,0.0001782,2]
[378492391,1754886668766,-830.43,0.0001782,2]
[378492392,1754886668775,-906.92,0.0001782,2]
[378492393,1754886668785,-452.87,0.0001782,2]
[378492394,1754886668794,-905.61,0.0001782,2]
[378492395,1754886668803,-400.0,0.0001782,2]
[378492396,1754886668813,-400.0,0.0001782,2]
[378492397,1754886668822,-779.35,0.0001782,2]
[378492398,1754886668832,-400.0,0.0001782,2]
[378492399,1754886668841,-872.521428,0.0001782,2]
[378492400,1754886668851,-400.0,0.0001782,2]
[378492401,1754886668860,-515.391656,0.0001782,2]
[378492402,1754886668870,-1163.2,0.0001782,2]
[378492403,1754886668880,-911.89,0.0001782,2]
[378492404,1754886668889,-801.19,0.0001782,2]
[378492405,1754886668899,-440.36,0.0001782,2]
[378492406,1754886668909,-1277.31,0.0001782,2]
[378492407,1754886668919,-514.07,0.0001782,2]
[378492408,1754886668930,-868.29,0.0001782,2]
[378492409,1754886668939,-668.83,0.0001782,2]
[378492410,1754886668949,-1375.88,0.0001782,2]
[378492411,1754886668958,-577.53,0.0001782,2]
[378492412,1754886668967,-8456.03,0.0001782,2]
[378492413,1754886669063,-400.0,0.0001782,2]
[378492414,1754886669072,-400.0,0.0001782,2]
[378492415,1754886669082,-649.48,0.0001782,2]
[378492416,1754886669091,-1680.21,0.0001782,2]
[378492417,1754886669099,-1049.17,0.0001782,2]
[378492418,1754886669108,-400.0,0.0001782,2]
[378492419,1754886669118,-951.39,0.0001782,2]
[378492420,1754886669127,-454.86,0.0001782,2]
[378492421,1754886669137,-824.89,0.0001782,2]
[378492422,1754886669146,-407.63,0.0001782,2]
[378492423,1754886669158,-585.0,0.0001782,2]
[378492424,1754886669167,-400.0,0.0001782,2]
[378492425,1754886669178,-400.0,0.0001782,2]
[378492426,1754886669187,-1455.85,0.0001782,2]
[378492427,1754886669197,-400.0,0.0001782,2]
[378492428,1754886669206,-400.0,0.0001782,2]
[378492429,1754886669215,-769.24,0.0001782,2]
[378492430,1754886669224,-2199.58,0.0001782,2]
[378492431,1754886669233,-400.0,0.0001782,2]
[378492432,1754886669242,-655.83,0.0001782,2]
[378492433,1754886669251,-400.0,0.0001782,2]
[378492434,1754886669261,-668.14,0.0001782,2]
[378492435,1754886669271,-2114.03,0.0001782,2]
[378492436,1754886669280,-410.79,0.0001782,2]
[378492437,1754886669289,-717.01,0.0001782,2]
[378492438,1754886669299,-526.86,0.0001782,2]
[378492439,1754886669307,-1612.96,0.0001782,2]
[378492440,1754886669320,-1228.52,0.0001782,2]
[378492441,1754886669330,-258.02831829,0.0001782,2]
[378492442,1754886669339,-400.0,0.0001782,2]
[378492443,1754886669348,-2955.4,0.0001782,2]
[378492444,1754886669358,-400.0,0.0001782,2]
[378492445,1754886669367,-2031.05,0.0001782,2]
[378492446,1754886669376,-882.39,0.0001782,2]
[378492447,1754886669386,-400.0,0.0001782,2]
[378492448,1754886669395,-1330.79,0.0001782,2]
[378492449,1754886669405,-715.05,0.0001782,2]
[378492450,1754886669415,-1272.39,0.0001782,2]
[378492451,1754886669425,-8173.14,0.0001782,2]
[378492452,1754886669434,-1781.66,0.0001782,2]
[378492453,1754886669444,-477.68,0.0001782,2]
[378492454,1754886669453,-1122.75,0.0001782,2]
[378492455,1754886669463,-1331.68,0.0001782,2]
[378492456,1754886669472,-888.75,0.0001782,2]
[378492457,1754886669482,-400.0,0.0001782,2]
[378492458,1754886669492,-400.0,0.0001782,2]
[378492459,1754886669502,-400.0,0.0001782,2]
[378492460,1754886669512,-2038.29,0.0001782,2]
[378492461,1754886669523,-554.01,0.0001782,2]
[378492462,1754886669533,-651.43,0.0001782,2]
[378492463,1754886669543,-1369.36,0.0001782,2]
[378492464,1754886669552,-1339.24,0.0001782,2]
[378492465,1754886669562,-1803.47,0.0001782,2]
[378492466,1754886669572,-1113.52,0.0001782,2]
[378492467,1754886669584,-400.0,0.0001782,2]
[378492468,1754886669594,-2663.6,0.0001782,2]
[378492469,1754886669603,-400.0,0.0001782,2]
[378492470,1754886669612,-3713.7,0.0001782,2]
[378492471,1754886669622,-1153.98,0.0001782,2]
[378492472,1754886669631,-1944.28,0.0001782,2]
[378492473,1754886669641,-306.57152995,0.0001782,2]
[378492474,1754886669650,-1435.98,0.0001782,2]
[378492475,1754886669660,-400.0,0.0001782,2]
[378492476,1754886669670,-402.20034348,0.0001782,2]
[378492477,1754886669682,-461.94057588,0.0001782,2]
[378492478,1754886669692,-2243.73,0.0001782,2]
[378492479,1754886669701,-3812.9,0.0001782,2]
[378492480,1754886669710,-400.0,0.0001782,2]
[378492481,1754886669720,-400.0,0.0001782,2]
[378492482,1754886669729,-592.95,0.0001782,2]
[378492483,1754886669739,-400.0,0.0001782,2]
[378492484,1754886669750,-400.0,0.0001782,2]
[378492485,1754886669760,-400.0,0.0001782,2]
[378492486,1754886669769,-1891.0,0.0001782,2]
[378492487,1754886669779,-400.0,0.0001782,2]
[378492488,1754886669788,-400.0,0.0001782,2]
[378492489,1754886669798,-1087.1,0.0001782,2]
[378492490,1754886669808,-1589.93,0.0001782,2]
[378492491,1754886669818,-400.0,0.0001782,2]
[378492492,1754886669828,-1124.67,0.0001782,2]
[378492493,1754886669837,-2878.68,0.0001782,2]
[378492494,1754886669847,-495.91,0.0001782,2]
[378492495,1754886669856,-400.0,0.0001782,2]
[378492496,1754886669866,-950.56,0.0001782,2]
[378492497,1754886669876,-1307.49,0.0001782,2]
[378492498,1754886669886,-2695.27,0.0001782,2]
[378492499,1754886669896,-856.38,0.0001782,2]
[378492500,1754886669906,-739.41,0.0001782,2]
[378492501,1754886669915,-1363.59,0.0001782,2]
[378492502,1754886669925,-855.45,0.0001782,2]
[378492503,1754886669934,-812.2,0.0001782,2]
[378492504,1754886669944,-5196.27,0.0001782,2]
[378492505,1754886669954,-400.0,0.0001782,2]
[378492506,1754886669963,-5397.17,0.0001782,2]
[378492507,1754886669972,-1486.27,0.0001782,2]
[378492508,1754886669981,-1285.96,0.0001782,2]
[378492509,1754886669991,-2798.96,0.0001782,2]
[378492510,1754886670000,-1895.73,0.0001782,2]
[378492511,1754886670009,-400.0,0.0001782,2]
[378492512,1754886670018,-806.53,0.0001782,2]
[378492513,1754886670028,-1274.2,0.0001782,2]
[378492514,1754886670037,-1651.76,0.0001782,2]
[378492515,1754886670047,-400.0,0.0001782,2]
[378492516,1754886670057,-1256.2,0.0001782,2]
[378492517,1754886670066,-635.75,0.0001782,2]
[378492518,1754886670076,-849.98,0.0001782,2]
[378492519,1754886670086,-400.0,0.0001782,2]
[378492520,1754886670095,-507.68,0.0001782,2]
[378492521,1754886670105,-3620.19,0.0001782,2]
[378492522,1754886670116,-538.52,0.0001782,2]
[378492523,1754886670126,-400.0,0.0001782,2]
[378492524,1754886670135,-1287.03,0.0001782,2]
[378492525,1754886670145,-539.41,0.0001782,2]
[378492526,1754886670155,-675.45,0.0001782,2]
[378492527,1754886670165,-1583.18,0.0001782,2]
[378492528,1754886670174,-701.46,0.0001782,2]
[378492529,1754886670184,-400.0,0.0001782,2]
[378492530,1754886670194,-400.0,0.0001782,2]
[378492531,1754886670204,-400.0,0.00017821,2]
[378492532,1754886670214,-400.0,0.00017821,2]
[378492533,1754886670223,-406.85,0.00017821,2]
[378492534,1754886670234,-400.0,0.00017821,2]
[378492535,1754886670243,-400.0,0.00017821,2]
[378492536,1754886670253,-711.84,0.00017821,2]
[378492537,1754886670264,-400.0,0.00017821,2]
[378492538,1754886670274,-400.0,0.00017821,2]
[378492539,1754886670284,-400.0,0.00017821,2]
[378492540,1754886670293,-524.02,0.00017821,2]
[378492541,1754886670303,-400.0,0.00017821,2]
[378492542,1754886670313,-604.75,0.00017821,2]
[378492543,1754886670323,-599.12,0.00017821,2]
[378492544,1754886670333,-400.0,0.00017821,2]
[378492545,1754886670343,-400.0,0.00017821,2]
[378492546,1754886670353,-982.92,0.00017821,2]
[378492547,1754886670362,-400.0,0.00017821,2]
[378492548,1754886670372,-400.0,0.00017821,2]
[378492549,1754886670385,-766.83,0.00017821,2]
[378492550,1754886670396,-400.0,0.00017821,2]
[378492551,1754886670405,-400.0,0.00017821,2]
[378492552,1754886670416,-442.27,0.00017821,2]
[378492553,1754886670426,-502.43,0.00017821,2]
[378492554,1754886670436,-443.75,0.00017821,2]
[378492555,1754886670446,-400.0,0.00017821,2]
[378492556,1754886670456,-593.67,0.00017821,2]
[378492557,1754886670466,-400.0,0.00017821,2]
[378492558,1754886670476,-400.0,0.00017821,2]
[378492559,1754886670486,-400.0,0.00017821,2]
[378492560,1754886670496,-400.0,0.00017821,2]
[378492561,1754886670507,-222.56257077,0.00017821,2]
[378492562,1754886670517,-400.0,0.00017821,2]
[378492563,1754886670527,-400.0,0.00017821,2]
[378492564,1754886670537,-400.0,0.00017821,2]
[378492565,1754886670548,-400.0,0.00017821,2]
[378492566,1754886670558,-984.1,0.00017821,2]
[378492567,1754886670568,-270.42955711,0.00017821,2]
[378492568,1754886670580,-400.0,0.00017821,2]
[378492569,1754886670593,-530.48005159,0.00017821,2]
[378492570,1754886670603,-400.0,0.00017821,2]
[378492571,1754886670613,-530.59,0.00017821,2]
[378492572,1754886670624,-268.01,0.00017821,2]
[378492573,1754886670634,-408.13,0.00017821,2]
[378492574,1754886670644,-796.23,0.00017821,2]
[378492575,1754886670655,-400.0,0.00017821,2]
[378492576,1754886670666,-459.01,0.00017821,2]
[378492577,1754886670676,-1031.28,0.00017821,2]
[378492578,1754886670686,-400.0,0.00017821,2]
[378492579,1754886670698,-490.33,0.00017821,2]
[378492580,1754886670708,-400.0,0.00017821,2]
[378492581,1754886670720,-562.38,0.00017821,2]
[378492582,1754886670731,-589.46,0.00017821,2]
[378492583,1754886670741,-400.0,0.00017821,2]
[378492584,1754886670752,-435.55,0.00017821,2]
[378492585,1754886670762,-400.0,0.00017821,2]
[378492586,1754886670772,-498.17,0.00017821,2]
[378492587,1754886670783,-400.0,0.00017821,2]
[378492588,1754886670792,-400.0,0.00017821,2]
[378492589,1754886670803,-498.63,0.00017821,2]
[378492590,1754886670812,-460.0,0.00017821,2]
[378492591,1754886670822,-409.56,0.00017821,2]
[378492592,1754886670832,-400.0,0.00017821,2]
[378492593,1754886670842,-567.63,0.00017821,2]
[378492594,1754886670852,-690.83,0.00017821,2]
[378492595,1754886670863,-400.0,0.00017821,2]
[378492596,1754886670873,-400.0,0.00017821,2]
[378492597,1754886670883,-400.0,0.00017821,2]
[378492598,1754886670893,-400.0,0.00017821,2]
[378492599,1754886670903,-710.53,0.00017821,2]
[378492600,1754886670914,-436.05,0.00017821,2]
[378492601,1754886670924,-400.0,0.00017821,2]
[378492602,1754886670935,-400.0,0.00017821,2]
[378492603,1754886670944,-400.0,0.00017821,2]
[378492604,1754886670954,-175.06985073,0.00017821,2]
[378492605,1754886670964,-400.0,0.00017821,2]
[378492606,1754886670974,-400.0,0.00017821,2]
[378492607,1754886670983,-342.71754254,0.00017821,2]
[378492608,1754886670993,-400.0,0.00017821,2]
[378492609,1754886671003,-400.0,0.00017821,2]
[378492610,1754886671012,-502.26,0.00017821,2]
[378492611,1754886671022,-400.0,0.00017821,2]
[378492612,1754886671032,-400.0,0.00017821,2]
[378492613,1754886671042,-400.0,0.00017821,2]
[378492614,1754886671052,-564.3,0.00017821,2]
[378492615,1754886671063,-400.0,0.00017821,2]
[378492616,1754886671073,-249.51767764,0.00017821,2]
[378492617,1754886671083,-400.0,0.00017821,2]
[378492618,1754886671094,-400.0,0.00017821,2]
[378492619,1754886671104,-400.0,0.00017821,2]
[378492620,1754886671114,-400.0,0.00017821,2]
[378492621,1754886671124,-400.0,0.00017821,2]
[378492622,1754886671134,-400.0,0.00017821,2]
[378492623,1754886671143,-400.0,0.00017821,2]
[378492624,1754886671153,-400.0,0.00017821,2]
[378492625,1754886671163,-400.0,0.00017821,2]
[378492626,1754886671173,-638.71,0.00017821,2]
[378492627,1754886671184,-400.0,0.00017821,2]
[378492628,1754886671194,-512.9,0.00017821,2]
[378492629,1754886671204,-400.0,0.00017821,2]
[378492630,1754886671214,-1168.39,0.00017821,2]
[378492631,1754886671224,-400.0,0.00017821,2]
[378492632,1754886671233,-816.18,0.00017821,2]
[378492633,1754886671243,-400.0,0.00017821,2]
[378492634,1754886671253,-408.21469106,0.00017821,2]
[378492635,1754886671262,-1319.27,0.00017821,2]
[378492636,1754886671272,-404.75014074,0.00017821,2]
[378492637,1754886671282,-400.0,0.00017821,2]
[378492638,1754886671292,-848.1,0.00017821,2]
[378492639,1754886671302,-1000.0,0.00017821,2]
[378492640,1754886671312,-452.23,0.00017821,2]
[378492641,1754886671322,-763.33,0.00017821,2]
[378492642,1754886671332,-400.0,0.00017821,2]
[378492643,1754886671342,-400.0,0.00017821,2]
[378492644,1754886671352,-400.0,0.00017821,2]
[378492645,1754886671362,-400.0,0.00017821,2]
[378492646,1754886671372,-400.0,0.00017821,2]
[378492647,1754886671382,-400.0,0.00017821,2]
[378492648,1754886671392,-400.0,0.00017821,2]
[378492649,1754886671402,-534.83,0.00017821,2]
[378492650,1754886671412,-1432.31,0.00017821,2]
[378492651,1754886671422,-400.0,0.00017821,2]
[378492652,1754886671436,-400.0,0.00017821,2]
[378492653,1754886671450,-400.0,0.00017821,2]
[378492654,1754886671460,-400.0,0.00017821,2]
[378492655,1754886671471,-1096.29,0.00017821,2]
[378492656,1754886671481,-481.17,0.00017821,2]
[378492657,1754886671492,-500.1,0.00017821,2]
[378492658,1754886671502,-400.0,0.00017821,2]
[378492659,1754886671512,-400.0,0.00017821,2]
[378492660,1754886671522,-1173.96,0.00017821,2]
[378492661,1754886671532,-400.0,0.00017821,2]
[378492662,1754886671542,-402.28,0.00017821,2]
[378492663,1754886671552,-400.0,0.00017821,2]
[378492664,1754886671562,-400.0,0.00017821,2]
[378492665,1754886671573,-1368.54,0.00017821,2]
[378492666,1754886671585,-400.0,0.00017821,2]
[378492667,1754886671595,-752.63,0.00017821,2]
[378492668,1754886671605,-400.0,0.00017821,2]
[378492669,1754886671616,-538.48,0.00017821,2]
[378492670,1754886671628,-400.0,0.00017821,2]
[378492671,1754886671638,-673.3,0.00017821,2]
[378492672,1754886671649,-400.0,0.00017821,2]
[378492673,1754886671659,-400.0,0.00017821,2]
[378492674,1754886671671,-1433.44,0.00017821,2]
[378492675,1754886671685,-400.0,0.00017821,2]
[378492676,1754886671695,-400.0,0.00017821,2]
[378492677,1754886671704,-400.0,0.00017821,2]
[378492678,1754886671714,-400.0,0.00017821,2]
[378492679,1754886671725,-1225.04,0.00017821,2]
[378492680,1754886671735,-740.04,0.00017821,2]
[378492681,1754886671744,-1059.77,0.00017821,2]
[378492682,1754886671755,-400.0,0.00017821,2]
[378492683,1754886671765,-524.56755932,0.00017821,2]
[378492684,1754886671775,-400.0,0.00017821,2]
[378492685,1754886671785,-400.0,0.00017821,2]
[378492686,1754886671796,-400.0,0.00017821,2]
[378492687,1754886671805,-291.55485447,0.00017821,2]
[378492688,1754886671815,-1292.83,0.00017821,2]
[378492689,1754886671825,-2940.45,0.00017821,2]
[378492690,1754886671835,-400.0,0.00017821,2]
[378492691,1754886671846,-400.0,0.00017821,2]
[378492692,1754886671856,-400.0,0.00017821,2]
[378492693,1754886671866,-400.0,0.00017821,2]